[Event "Open Nuevo Centro. Jornada 2"]
[Site "Chess.com"]
[Date "2020.06.26"]
[Round "9"]
[White "Crevillen Abad, Clemente"]
[Black "Gracia Calvo, Andrés"]
[Result "0-1"]
[WhiteElo "1737"]
[BlackElo "1819"]
[TimeControl "180+2"]
[EndTime "12:09:12 PDT"]
[Termination "Victoria de andresjaque21 por tiempo"]

1. e4 {[%clk 0:03:01.9]} 1... d5 {[%clk 0:03:00.3]} 2. exd5 {[%clk 0:03:01.6]}
2... Qxd5 {[%clk 0:03:01.3]} 3. Nc3 {[%clk 0:03:01.6]} 3... Qd6 {[%clk
0:03:02.2]} 4. Bc4 {[%clk 0:02:59.4]} 4... Nf6 {[%clk 0:03:02.6]} 5. d4 {[%clk
0:02:57]} 5... Bg4 {[%clk 0:03:03.2]} 6. Nge2 {[%clk 0:02:49]} 6... e6 {[%clk
0:03:03.6]} 7. O-O {[%clk 0:02:43.6]} 7... c6 {[%clk 0:03:01.5]} 8. Bf4 {[%clk
0:02:38.5]} 8... Qd8 {[%clk 0:02:50.9]} 9. f3 {[%clk 0:02:19.9]} 9... Bh5 {[%clk
0:02:45.5]} 10. Re1 {[%clk 0:02:16.1]} 10... Bd6 {[%clk 0:02:44.6]} 11. Bg3
{[%clk 0:02:10.7]} 11... O-O {[%clk 0:02:42.5]} 12. Nf4 {[%clk 0:01:23.9]} 12...
Bg6 {[%clk 0:02:31.7]} 13. Nxg6 {[%clk 0:00:15.1]} 13... hxg6 {[%clk 0:02:32.1]}
14. Bxd6 {[%clk 0:00:15.3]} 14... Qxd6 {[%clk 0:02:32.3]} 15. Ne2 {[%clk
0:00:15.9]} 15... Rd8 {[%clk 0:02:31]} 16. c3 {[%clk 0:00:16.5]} 16... Nbd7
{[%clk 0:02:31]} 17. Qc2 {[%clk 0:00:16.9]} 17... Nb6 {[%clk 0:02:30.4]} 18. Bb3
{[%clk 0:00:15.4]} 18... Nbd5 {[%clk 0:02:28.7]} 19. c4 {[%clk 0:00:14.4]} 19...
Nf4 {[%clk 0:02:23.9]} 20. Rad1 {[%clk 0:00:13.1]} 20... Nxe2+ {[%clk
0:02:20.5]} 21. Qxe2 {[%clk 0:00:13.8]} 21... Qf4 {[%clk 0:02:19.8]} 22. Qe4
{[%clk 0:00:13.7]} 22... Qxe4 {[%clk 0:02:16.2]} 23. fxe4 {[%clk 0:00:14]} 23...
Rd7 {[%clk 0:02:15]} 24. d5 {[%clk 0:00:14.6]} 24... Rad8 {[%clk 0:02:07.9]} 25.
dxe6 {[%clk 0:00:14]} 25... fxe6 {[%clk 0:02:05.9]} 26. Rxd7 {[%clk 0:00:13.7]}
26... Rxd7 {[%clk 0:02:06.2]} 27. e5 {[%clk 0:00:13.8]} 27... Ng4 {[%clk
0:02:02.1]} 28. h3 {[%clk 0:00:14.4]} 28... Nh6 {[%clk 0:02:02.6]} 29. Rd1
{[%clk 0:00:14.5]} 29... Rxd1+ {[%clk 0:01:59.2]} 30. Bxd1 {[%clk 0:00:14.6]}
30... Nf7 {[%clk 0:01:59.7]} 31. Bg4 {[%clk 0:00:14.4]} 31... Nxe5 {[%clk
0:02:00]} 32. Bxe6+ {[%clk 0:00:15.1]} 32... Kf8 {[%clk 0:02:00.9]} 33. Kf2
{[%clk 0:00:14.4]} 33... Ke7 {[%clk 0:02:01.5]} 34. Bg8 {[%clk 0:00:14.9]} 34...
Nd3+ {[%clk 0:01:58.6]} 35. Ke3 {[%clk 0:00:15.7]} 35... Nxb2 {[%clk 0:01:58.6]}
0

[Event "Open Nuevo Centro. Jornada 2"]
[Site "Chess.com"]
[Date "2020.06.26"]
[Round "9"]
[White "Bosch Jordà, Ricard"]
[Black "Cebolla Ruiz, David"]
[Result "1-0"]
[WhiteElo "1759"]
[BlackElo "1546"]
[TimeControl "180+2"]
[EndTime "12:09:19 PDT"]
[Termination "Victoria de UltimateLimo por jaque mate"]

1. e4 {[%clk 0:03:01.9]} 1... c6 {[%clk 0:03:00.3]} 2. d4 {[%clk 0:03:01.5]}
2... d5 {[%clk 0:03:00.9]} 3. exd5 {[%clk 0:03:02.5]} 3... cxd5 {[%clk
0:03:02.1]} 4. Bd3 {[%clk 0:03:02.1]} 4... Nf6 {[%clk 0:02:58.8]} 5. c3 {[%clk
0:03:02.9]} 5... Nc6 {[%clk 0:02:58.1]} 6. h3 {[%clk 0:03:02.6]} 6... e6 {[%clk
0:02:34.3]} 7. Nf3 {[%clk 0:03:02.5]} 7... Bd6 {[%clk 0:01:57.4]} 8. O-O {[%clk
0:03:01.7]} 8... O-O {[%clk 0:01:57]} 9. Bg5 {[%clk 0:02:58.6]} 9... Be7 {[%clk
0:01:54.5]} 10. Nbd2 {[%clk 0:02:54.5]} 10... h6 {[%clk 0:01:42.5]} 11. Bh4
{[%clk 0:02:53.3]} 11... Qc7 {[%clk 0:00:59.9]} 12. Re1 {[%clk 0:02:42.1]} 12...
b6 {[%clk 0:00:50.7]} 13. Ne5 {[%clk 0:02:36.5]} 13... Nxe5 {[%clk 0:00:46.4]}
14. Rxe5 {[%clk 0:02:24.6]} 14... Bd6 {[%clk 0:00:42.1]} 15. Bxf6 {[%clk
0:02:10.6]} 15... gxf6 {[%clk 0:00:42.6]} 16. Rh5 {[%clk 0:01:46.6]} 16... Bf4
{[%clk 0:00:40.2]} 17. Nf1 {[%clk 0:00:57.7]} 17... e5 {[%clk 0:00:16.9]} 18.
dxe5 {[%clk 0:00:54.5]} 18... fxe5 {[%clk 0:00:15.9]} 19. Bc2 {[%clk 0:00:53.9]}
19... e4 {[%clk 0:00:13.6]} 20. Qxd5 {[%clk 0:00:50.2]} 20... Qd6 {[%clk
0:00:13]} 21. Qxe4 {[%clk 0:00:45.3]} 21... Be6 {[%clk 0:00:11.1]} 22. Qh7#
{[%clk 0:00:38.2]} 1

[Event "Open Nuevo Centro. Jornada 2"]
[Site "Chess.com"]
[Date "2020.06.26"]
[Round "9"]
[White "Aymerich Rosell, Pablo"]
[Black "Chernikov, Vladimir"]
[Result "1-0"]
[WhiteElo "2011"]
[BlackElo "2257"]
[TimeControl "180+2"]
[EndTime "12:09:26 PDT"]
[Termination "Victoria de jasikevic por tiempo"]

1. e4 {[%clk 0:03:01.9]} 1... c5 {[%clk 0:03:00.5]} 2. Nf3 {[%clk 0:03:02.5]}
2... Nc6 {[%clk 0:03:01.7]} 3. d4 {[%clk 0:03:03.2]} 3... cxd4 {[%clk
0:03:03.6]} 4. Nxd4 {[%clk 0:03:04.4]} 4... e5 {[%clk 0:03:05.2]} 5. Nb5 {[%clk
0:03:04.8]} 5... d6 {[%clk 0:03:06.4]} 6. N1c3 {[%clk 0:03:04.4]} 6... a6 {[%clk
0:03:07.1]} 7. Na3 {[%clk 0:03:05.3]} 7... Be7 {[%clk 0:03:08.7]} 8. Be3 {[%clk
0:03:02.9]} 8... Nf6 {[%clk 0:02:51.9]} 9. Nc4 {[%clk 0:03:02.1]} 9... b5 {[%clk
0:02:51.5]} 10. Nb6 {[%clk 0:03:02.3]} 10... Rb8 {[%clk 0:02:52.5]} 11. Nxc8
{[%clk 0:03:03.2]} 11... Rxc8 {[%clk 0:02:53.2]} 12. Be2 {[%clk 0:03:00.5]}
12... b4 {[%clk 0:02:50.7]} 13. Nd5 {[%clk 0:03:01]} 13... Nxe4 {[%clk
0:02:36.8]} 14. O-O {[%clk 0:03:01.1]} 14... O-O {[%clk 0:02:32.3]} 15. a4
{[%clk 0:03:01.6]} 15... a5 {[%clk 0:02:16.4]} 16. Bb5 {[%clk 0:02:58.9]} 16...
Nc5 {[%clk 0:00:46]} 17. Qe2 {[%clk 0:02:08.4]} 17... f5 {[%clk 0:00:31.8]} 18.
Rfd1 {[%clk 0:02:00.4]} 18... Ne6 {[%clk 0:00:21.7]} 19. Nb6 {[%clk 0:01:39]}
19... Ncd4 {[%clk 0:00:19.4]} 20. Bxd4 {[%clk 0:01:25.3]} 20... Nxd4 {[%clk
0:00:20.6]} 21. Rxd4 {[%clk 0:01:16.5]} 21... Qxb6 {[%clk 0:00:21.5]} 22. Rc4
{[%clk 0:01:08.4]} 22... f4 {[%clk 0:00:20.4]} 23. Kh1 {[%clk 0:00:52.8]} 23...
f3 {[%clk 0:00:18.2]} 24. gxf3 {[%clk 0:00:50.3]} 1

[Event "Open Nuevo Centro. Jornada 2"]
[Site "Chess.com"]
[Date "2020.06.26"]
[Round "9"]
[White "Cinà Asensio, Luca "]
[Black "Alvarez Usina, Joan"]
[Result "0-1"]
[WhiteElo "591"]
[BlackElo "692"]
[TimeControl "180+2"]
[EndTime "12:09:35 PDT"]
[Termination "Victoria de Joan_alvarez por abandono"]

1. e4 {[%clk 0:02:59.7]} 1... e5 {[%clk 0:02:49.5]} 2. Nf3 {[%clk 0:02:58.4]}
2... Nc6 {[%clk 0:02:45.5]} 3. Bc4 {[%clk 0:02:57.9]} 3... Bc5 {[%clk
0:02:40.3]} 4. d3 {[%clk 0:02:56.1]} 4... d6 {[%clk 0:02:37.5]} 5. Ng5 {[%clk
0:02:56.1]} 5... Nh6 {[%clk 0:02:28.2]} 6. Nf3 {[%clk 0:02:51.4]} 6... a6 {[%clk
0:02:23.9]} 7. Bxh6 {[%clk 0:02:50]} 7... gxh6 {[%clk 0:02:22.2]} 8. Qc1 {[%clk
0:02:48.3]} 8... b5 {[%clk 0:02:18.9]} 9. Qxh6 {[%clk 0:02:45.2]} 9... Nd4
{[%clk 0:02:15.3]} 10. Nxd4 {[%clk 0:02:45]} 10... Bxd4 {[%clk 0:02:14.1]} 11.
Qg7 {[%clk 0:01:24.7]} 11... Rf8 {[%clk 0:02:09.1]} 12. Bd5 {[%clk 0:01:18.7]}
12... Rb8 {[%clk 0:02:02.8]} 13. O-O {[%clk 0:01:12.3]} 13... Bxb2 {[%clk
0:02:00.8]} 14. Nd2 {[%clk 0:01:10.3]} 14... Bxa1 {[%clk 0:02:00.4]} 15. Rxa1
{[%clk 0:01:10]} 15... Qe7 {[%clk 0:01:53.1]} 16. Qxh7 {[%clk 0:01:07.5]} 16...
Be6 {[%clk 0:01:51.1]} 17. Bc6+ {[%clk 0:01:06.8]} 17... Kd8 {[%clk 0:01:47.2]}
18. Qh5 {[%clk 0:00:59.8]} 18... Bd7 {[%clk 0:01:36.6]} 19. Nf1 {[%clk
0:01:01.7]} 19... Bxc6 {[%clk 0:01:35.3]} 20. Qh3 {[%clk 0:00:57.8]} 20... Rg8
{[%clk 0:01:30.8]} 21. Qh7 {[%clk 0:00:56.6]} 21... Qg5 {[%clk 0:01:29.1]} 22.
g3 {[%clk 0:00:54.3]} 22... d5 {[%clk 0:01:24.8]} 23. exd5 {[%clk 0:00:53.3]}
23... Bxd5 {[%clk 0:01:24.3]} 24. c4 {[%clk 0:00:50.9]} 24... bxc4 {[%clk
0:01:22]} 25. dxc4 {[%clk 0:00:52.8]} 25... Bxc4 {[%clk 0:01:21.4]} 26. Rc1
{[%clk 0:00:50.1]} 26... Bxa2 {[%clk 0:01:19]} 27. Rc2 {[%clk 0:00:48.2]} 27...
Bb1 {[%clk 0:01:15.1]} 28. Rb2 {[%clk 0:00:47.3]} 28... Rxb2 {[%clk 0:01:12.1]}
29. Ne3 {[%clk 0:00:40.6]} 29... Bxh7 {[%clk 0:01:10.3]} 30. Nc4 {[%clk
0:00:39.4]} 30... Qc1+ {[%clk 0:01:07.8]} 31. Kg2 {[%clk 0:00:26.4]} 31... Qxc4
{[%clk 0:01:06.5]} 32. Kf3 {[%clk 0:00:23]} 32... Rb3+ {[%clk 0:01:03.3]} 0

[Event "Open Nuevo Centro. Jornada 2"]
[Site "Chess.com"]
[Date "2020.06.26"]
[Round "9"]
[White "Ainsa Jimenez, Lucas"]
[Black "Martínez Cuenca, Jose Andrés"]
[Result "1-0"]
[WhiteElo "999"]
[BlackElo "1062"]
[TimeControl "180+2"]
[EndTime "12:09:36 PDT"]
[Termination "Victoria de ainsaluck por tiempo"]

1. e4 {[%clk 0:03:01.9]} 1... c5 {[%clk 0:02:52.3]} 2. Nf3 {[%clk 0:03:02.9]}
2... g6 {[%clk 0:02:50.3]} 3. Nc3 {[%clk 0:03:01.1]} 3... Bg7 {[%clk 0:02:46.6]}
4. d3 {[%clk 0:02:59]} 4... Nc6 {[%clk 0:02:42.1]} 5. Be2 {[%clk 0:02:55.2]}
5... Nf6 {[%clk 0:02:41.4]} 6. O-O {[%clk 0:02:50.2]} 6... d6 {[%clk 0:02:40.9]}
7. Bg5 {[%clk 0:02:46]} 7... O-O {[%clk 0:02:39.8]} 8. Bxf6 {[%clk 0:02:45]}
8... Bxf6 {[%clk 0:02:39.7]} 9. Nb1 {[%clk 0:02:38.2]} 9... Bxb2 {[%clk
0:02:37.3]} 10. Nc3 {[%clk 0:02:30.9]} 10... Bxc3 {[%clk 0:02:23.3]} 11. Rb1
{[%clk 0:02:21.1]} 11... Nd4 {[%clk 0:01:46.5]} 12. Nxd4 {[%clk 0:01:19.1]}
12... Bxd4 {[%clk 0:01:44.4]} 13. Rc1 {[%clk 0:01:15.6]} 13... Bb2 {[%clk
0:01:29.6]} 14. Rb1 {[%clk 0:01:12.7]} 14... Bc3 {[%clk 0:01:27.9]} 15. Rb3
{[%clk 0:01:11.9]} 15... Bd4 {[%clk 0:01:22.7]} 16. c3 {[%clk 0:01:11.2]} 16...
Be5 {[%clk 0:01:17.1]} 17. d4 {[%clk 0:01:10.1]} 17... cxd4 {[%clk 0:01:15.8]}
18. cxd4 {[%clk 0:01:11.1]} 18... Bf6 {[%clk 0:01:15.9]} 19. Rd3 {[%clk
0:01:09]} 19... e5 {[%clk 0:01:06.6]} 20. dxe5 {[%clk 0:01:08.2]} 20... Bxe5
{[%clk 0:01:07.4]} 21. Qb3 {[%clk 0:01:02]} 21... Be6 {[%clk 0:01:00]} 22. Qc2
{[%clk 0:00:59.8]} 22... Rc8 {[%clk 0:00:56.4]} 23. Qb1 {[%clk 0:00:55]} 23...
Qa5 {[%clk 0:00:48.5]} 24. a3 {[%clk 0:00:47]} 1

[Event "Open Nuevo Centro. Jornada 2"]
[Site "Chess.com"]
[Date "2020.06.26"]
[Round "9"]
[White "Zamora Soler, Raul"]
[Black "Giaccio González, Alfredo Gustavo"]
[Result "0-1"]
[WhiteElo "1799"]
[BlackElo "2348"]
[TimeControl "180+2"]
[EndTime "12:09:39 PDT"]
[Termination "Victoria de AGG2020 por jaque mate"]

1. e4 {[%clk 0:03:01.9]} 1... c5 {[%clk 0:03:00.9]} 2. Nf3 {[%clk 0:03:01.9]}
2... a6 {[%clk 0:03:02.4]} 3. d4 {[%clk 0:03:02.5]} 3... cxd4 {[%clk 0:03:03]}
4. Nxd4 {[%clk 0:03:03.5]} 4... Nf6 {[%clk 0:03:04.2]} 5. f3 {[%clk 0:03:04.1]}
5... e5 {[%clk 0:03:02.3]} 6. Nb3 {[%clk 0:03:00.6]} 6... d6 {[%clk 0:02:42.1]}
7. c4 {[%clk 0:03:00.7]} 7... Be7 {[%clk 0:02:42.8]} 8. Nc3 {[%clk 0:03:01.3]}
8... O-O {[%clk 0:02:44.7]} 9. Be3 {[%clk 0:03:01.9]} 9... Be6 {[%clk
0:02:37.9]} 10. Qd2 {[%clk 0:03:02]} 10... Nbd7 {[%clk 0:02:36.3]} 11. Rc1
{[%clk 0:03:01.1]} 11... Rc8 {[%clk 0:02:36.6]} 12. Nd5 {[%clk 0:03:00.1]} 12...
Bxd5 {[%clk 0:02:29.4]} 13. cxd5 {[%clk 0:03:00.5]} 13... h6 {[%clk 0:02:26]}
14. Bd3 {[%clk 0:02:50.6]} 14... Nh7 {[%clk 0:02:26.5]} 15. O-O {[%clk
0:02:50.3]} 15... Bg5 {[%clk 0:02:26.4]} 16. Rxc8 {[%clk 0:02:43]} 16... Qxc8
{[%clk 0:02:21.1]} 17. Bxg5 {[%clk 0:02:38.5]} 17... Nxg5 {[%clk 0:02:19.8]} 18.
Rc1 {[%clk 0:00:20.6]} 18... Qd8 {[%clk 0:02:17.5]} 19. Qa5 {[%clk 0:00:21.3]}
19... Qf6 {[%clk 0:02:10.1]} 20. Qc7 {[%clk 0:00:21.8]} 20... Qf4 {[%clk
0:02:06.5]} 21. Qb6 {[%clk 0:00:20.7]} 21... Nf6 {[%clk 0:02:03.1]} 22. Qf2
{[%clk 0:00:20.3]} 22... Nh5 {[%clk 0:01:55.2]} 23. Be2 {[%clk 0:00:20.3]} 23...
Qf6 {[%clk 0:01:54.7]} 24. Na5 {[%clk 0:00:20.8]} 24... Nf4 {[%clk 0:01:54.5]}
25. Bf1 {[%clk 0:00:21.2]} 25... Qe7 {[%clk 0:01:49.8]} 26. b4 {[%clk
0:00:21.4]} 26... Qd7 {[%clk 0:01:48.8]} 27. a3 {[%clk 0:00:22.3]} 27... Rc8
{[%clk 0:01:48]} 28. Rxc8+ {[%clk 0:00:22.4]} 28... Qxc8 {[%clk 0:01:49.9]} 29.
Qd2 {[%clk 0:00:23.3]} 29... Qc7 {[%clk 0:01:47]} 30. g3 {[%clk 0:00:22.8]}
30... Nxf3+ {[%clk 0:01:46]} 31. Kf2 {[%clk 0:00:23]} 31... Nxd2 {[%clk
0:01:47.2]} 32. Bd3 {[%clk 0:00:24.2]} 32... Nxd3+ {[%clk 0:01:46.2]} 33. Ke3
{[%clk 0:00:26.1]} 33... Qc3 {[%clk 0:01:47]} 34. Nxb7 {[%clk 0:00:26.9]} 34...
Nc4+ {[%clk 0:01:47.3]} 35. Ke2 {[%clk 0:00:28.2]} 35... Qd2+ {[%clk 0:01:46.7]}
36. Kf3 {[%clk 0:00:28.6]} 36... Qf2+ {[%clk 0:01:21.4]} 37. Kg4 {[%clk
0:00:29.1]} 37... Ne3+ {[%clk 0:01:22.3]} 38. Kh3 {[%clk 0:00:29.9]} 38... Qg2+
{[%clk 0:01:20.2]} 39. Kh4 {[%clk 0:00:30.7]} 39... Qxh2# {[%clk 0:01:21]} 0

[Event "Open Nuevo Centro. Jornada 2"]
[Site "Chess.com"]
[Date "2020.06.26"]
[Round "9"]
[White "Sanchez Saez, Francisco"]
[Black "Pallardo Lozoya, Jose Vicente"]
[Result "0-1"]
[WhiteElo "2263"]
[BlackElo "2249"]
[TimeControl "180+2"]
[EndTime "12:09:50 PDT"]
[Termination "Victoria de PallardoChess por abandono"]

1. Nf3 {[%clk 0:03:01.9]} 1... d5 {[%clk 0:03:00.5]} 2. b3 {[%clk 0:03:02.2]}
2... Bg4 {[%clk 0:02:50.7]} 3. e3 {[%clk 0:02:59.7]} 3... Nd7 {[%clk 0:02:51.6]}
4. h3 {[%clk 0:02:59.9]} 4... Bh5 {[%clk 0:02:51.3]} 5. Bb2 {[%clk 0:03:00.3]}
5... Ngf6 {[%clk 0:02:50.5]} 6. d3 {[%clk 0:02:52.6]} 6... c6 {[%clk 0:02:50.2]}
7. g4 {[%clk 0:02:53.2]} 7... Bg6 {[%clk 0:02:50.7]} 8. Nh4 {[%clk 0:02:54.7]}
8... e5 {[%clk 0:02:50.9]} 9. Bg2 {[%clk 0:02:52.6]} 9... Bd6 {[%clk 0:02:50.5]}
10. Nd2 {[%clk 0:02:50]} 10... Qe7 {[%clk 0:02:50.1]} 11. a4 {[%clk 0:02:42.7]}
11... O-O {[%clk 0:02:35.8]} 12. Nf5 {[%clk 0:02:29.4]} 12... Bxf5 {[%clk
0:02:14]} 13. gxf5 {[%clk 0:02:31.3]} 13... e4 {[%clk 0:01:30]} 14. d4 {[%clk
0:02:03.2]} 14... h6 {[%clk 0:01:19.3]} 15. h4 {[%clk 0:01:56.2]} 15... Nh7
{[%clk 0:01:18.5]} 16. Qe2 {[%clk 0:01:42.6]} 16... Qf6 {[%clk 0:01:18.4]} 17.
O-O-O {[%clk 0:01:38.4]} 17... b5 {[%clk 0:01:06.4]} 18. a5 {[%clk 0:01:09.3]}
18... Bb4 {[%clk 0:01:00]} 19. Qg4 {[%clk 0:00:55.8]} 19... Bxa5 {[%clk
0:00:56.5]} 20. Rhg1 {[%clk 0:00:31.5]} 20... Kh8 {[%clk 0:00:47.1]} 21. Qg3
{[%clk 0:00:17.8]} 21... Rfc8 {[%clk 0:00:32.3]} 22. Nxe4 {[%clk 0:00:12.6]}
22... dxe4 {[%clk 0:00:32.3]} 23. d5 {[%clk 0:00:13.7]} 23... Bc3 {[%clk
0:00:31.9]} 24. Bxc3 {[%clk 0:00:14.1]} 24... Qxc3 {[%clk 0:00:33.8]} 25. Rd4
{[%clk 0:00:15.3]} 25... Qa1+ {[%clk 0:00:31.7]} 26. Kd2 {[%clk 0:00:16.2]}
26... Qxg1 {[%clk 0:00:32.5]} 27. f6 {[%clk 0:00:17.3]} 27... Ndxf6 {[%clk
0:00:32.3]} 28. Bxe4 {[%clk 0:00:15.9]} 28... Qxg3 {[%clk 0:00:32.6]} 0

[Event "Open Nuevo Centro. Jornada 2"]
[Site "Chess.com"]
[Date "2020.06.26"]
[Round "9"]
[White "Birnoveanu, Petru"]
[Black "Deusa Ballesteros, Lucas "]
[Result "0-1"]
[WhiteElo "1672"]
[BlackElo "1489"]
[TimeControl "180+2"]
[EndTime "12:09:53 PDT"]
[Termination "Victoria de facundillo2009 por abandono"]

1. e4 {[%clk 0:03:01.9]} 1... e6 {[%clk 0:03:00.2]} 2. Nf3 {[%clk 0:03:00.5]}
2... d5 {[%clk 0:03:00.8]} 3. Nc3 {[%clk 0:03:01.3]} 3... Nf6 {[%clk 0:03:00.3]}
4. e5 {[%clk 0:03:01.6]} 4... Nfd7 {[%clk 0:03:00.9]} 5. d4 {[%clk 0:03:02.4]}
5... c5 {[%clk 0:03:01.3]} 6. Ne2 {[%clk 0:03:03.1]} 6... Nc6 {[%clk 0:03:00.3]}
7. c3 {[%clk 0:03:03.2]} 7... Be7 {[%clk 0:02:55.2]} 8. g3 {[%clk 0:03:02.4]}
8... O-O {[%clk 0:02:53.6]} 9. Bg2 {[%clk 0:03:03]} 9... a6 {[%clk 0:02:51.6]}
10. a3 {[%clk 0:03:02.9]} 10... b5 {[%clk 0:02:49.3]} 11. Be3 {[%clk 0:02:36.5]}
11... c4 {[%clk 0:02:38.8]} 12. O-O {[%clk 0:02:22]} 12... a5 {[%clk 0:02:23.3]}
13. Rb1 {[%clk 0:02:02.4]} 13... b4 {[%clk 0:01:29.2]} 14. axb4 {[%clk
0:02:02.2]} 14... axb4 {[%clk 0:01:29.8]} 15. Ne1 {[%clk 0:01:54.2]} 15... bxc3
{[%clk 0:01:23.9]} 16. bxc3 {[%clk 0:01:54.4]} 16... Na5 {[%clk 0:01:15.2]} 17.
f4 {[%clk 0:01:54.7]} 17... Nb3 {[%clk 0:01:13.3]} 18. Nc1 {[%clk 0:01:51.4]}
18... Nxc1 {[%clk 0:01:09.9]} 19. Qxc1 {[%clk 0:01:51.2]} 19... Ba3 {[%clk
0:01:07.8]} 20. Qc2 {[%clk 0:01:49]} 20... Be7 {[%clk 0:01:03.9]} 21. Nf3 {[%clk
0:01:44.9]} 21... g6 {[%clk 0:01:03.2]} 22. h4 {[%clk 0:01:42.2]} 22... h5
{[%clk 0:01:00]} 23. Ng5 {[%clk 0:01:39.7]} 23... Bxg5 {[%clk 0:00:57.7]} 24.
fxg5 {[%clk 0:01:39.9]} 24... Qa5 {[%clk 0:00:53.2]} 25. Bh3 {[%clk 0:01:38.5]}
25... Qa2 {[%clk 0:00:50.9]} 26. Rb2 {[%clk 0:01:37.4]} 26... Qa4 {[%clk
0:00:50.4]} 27. Rf6 {[%clk 0:01:28.7]} 27... Qxc2 {[%clk 0:00:47]} 28. Rxc2
{[%clk 0:01:27.6]} 28... Nxf6 {[%clk 0:00:46.9]} 29. gxf6 {[%clk 0:01:25.2]}
29... Ra1+ {[%clk 0:00:45.5]} 30. Kh2 {[%clk 0:01:23.3]} 30... Bd7 {[%clk
0:00:46.1]} 31. g4 {[%clk 0:01:20.6]} 31... hxg4 {[%clk 0:00:45.5]} 32. Bxg4
{[%clk 0:01:20.6]} 32... Rfa8 {[%clk 0:00:45.3]} 33. h5 {[%clk 0:01:18.8]} 33...
gxh5 {[%clk 0:00:21.5]} 34. Bxh5 {[%clk 0:01:08.5]} 34... R1a2 {[%clk 0:00:22]}
35. Rxa2 {[%clk 0:01:03.2]} 35... Rxa2+ {[%clk 0:00:23.9]} 36. Kg3 {[%clk
0:00:59.2]} 36... Rc2 {[%clk 0:00:24.7]} 0

[Event "Open Nuevo Centro. Jornada 2"]
[Site "Chess.com"]
[Date "2020.06.26"]
[Round "9"]
[White "Sanchis Bon, Sergi"]
[Black "Colomer Martinez, Isabel"]
[Result "0-1"]
[WhiteElo "943"]
[BlackElo "1274"]
[TimeControl "180+2"]
[EndTime "12:10:00 PDT"]
[Termination "Victoria de jupiter555 por tiempo"]

1. e4 {[%clk 0:03:01.2]} 1... e5 {[%clk 0:03:00.6]} 2. Qf3 {[%clk 0:03:01.8]}
2... Nf6 {[%clk 0:02:59.3]} 3. g4 {[%clk 0:03:01.4]} 3... Bc5 {[%clk 0:02:55.4]}
4. g5 {[%clk 0:02:59.9]} 4... Ng8 {[%clk 0:02:44.5]} 5. Bc4 {[%clk 0:02:59.1]}
5... f6 {[%clk 0:02:36.6]} 6. Qh5+ {[%clk 0:02:54.2]} 6... g6 {[%clk 0:02:33.1]}
7. Qe2 {[%clk 0:02:42]} 7... fxg5 {[%clk 0:02:29]} 8. Qf3 {[%clk 0:02:35.5]}
8... Nh6 {[%clk 0:02:21.2]} 9. h4 {[%clk 0:02:24.9]} 9... Rf8 {[%clk 0:02:16.3]}
10. Qc3 {[%clk 0:02:10.6]} 10... Bxf2+ {[%clk 0:02:08.6]} 11. Kd1 {[%clk
0:01:57.2]} 11... Nc6 {[%clk 0:02:06.3]} 12. b4 {[%clk 0:01:51.7]} 12... d6
{[%clk 0:01:55.3]} 13. b5 {[%clk 0:01:22.7]} 13... Nd4 {[%clk 0:01:50.9]} 14.
Ba3 {[%clk 0:01:08.7]} 14... gxh4 {[%clk 0:01:39.3]} 15. Nh3 {[%clk 0:00:57.9]}
15... Rf3 {[%clk 0:01:26.9]} 16. d3 {[%clk 0:00:54.6]} 16... Bxh3 {[%clk
0:01:21]} 17. Nd2 {[%clk 0:00:40.2]} 17... Bg4 {[%clk 0:01:09]} 18. Nxf3 {[%clk
0:00:34.3]} 18... Bxf3+ {[%clk 0:01:06.7]} 19. Kd2 {[%clk 0:00:34.1]} 19... Bxh1
{[%clk 0:01:08.6]} 20. Rxh1 {[%clk 0:00:33.9]} 20... Qg5+ {[%clk 0:01:09.8]} 21.
Kd1 {[%clk 0:00:31.5]} 21... Qg4+ {[%clk 0:01:00.6]} 22. Kc1 {[%clk 0:00:28.4]}
22... Ne2+ {[%clk 0:00:58.7]} 23. Kb2 {[%clk 0:00:15.8]} 23... Nxc3 {[%clk
0:01:00.2]} 24. Kxc3 {[%clk 0:00:06.2]} 24... O-O-O {[%clk 0:00:58.1]} 25. Rb1
{[%clk 0:00:05]} 25... Bd4+ {[%clk 0:00:53.7]} 26. Kb3 {[%clk 0:00:03.3]} 26...
d5 {[%clk 0:00:46.9]} 0

[Event "Open Nuevo Centro. Jornada 2"]
[Site "Chess.com"]
[Date "2020.06.26"]
[Round "9"]
[White "Gimeno Higueras, Roberto"]
[Black "Macias Pino, Diego"]
[Result "1-0"]
[WhiteElo "2033"]
[BlackElo "2186"]
[TimeControl "180+2"]
[EndTime "12:10:02 PDT"]
[Termination "Victoria de Chicogrande2 por abandono"]

1. e4 {[%clk 0:03:01.9]} 1... c6 {[%clk 0:03:00.5]} 2. Nc3 {[%clk 0:03:02.2]}
2... d5 {[%clk 0:03:00.6]} 3. exd5 {[%clk 0:03:03.5]} 3... cxd5 {[%clk
0:03:01.4]} 4. d4 {[%clk 0:03:04.8]} 4... Nc6 {[%clk 0:03:02.1]} 5. h3 {[%clk
0:03:04.9]} 5... Bf5 {[%clk 0:03:01]} 6. Nf3 {[%clk 0:03:05.1]} 6... e6 {[%clk
0:03:01.5]} 7. Bd3 {[%clk 0:03:05.7]} 7... Bg6 {[%clk 0:03:01.8]} 8. O-O {[%clk
0:03:06.6]} 8... a6 {[%clk 0:02:59.8]} 9. Re1 {[%clk 0:03:07.4]} 9... Nf6 {[%clk
0:02:58.6]} 10. Bg5 {[%clk 0:03:02.8]} 10... Be7 {[%clk 0:02:58.4]} 11. Ne5
{[%clk 0:03:00.1]} 11... Nxe5 {[%clk 0:02:51.5]} 12. dxe5 {[%clk 0:03:00.8]}
12... Nd7 {[%clk 0:02:51.4]} 13. Bd2 {[%clk 0:02:49.5]} 13... Bc5 {[%clk
0:02:46.5]} 14. Qf3 {[%clk 0:02:40.8]} 14... Qc7 {[%clk 0:02:36.5]} 15. Bf4
{[%clk 0:02:26.7]} 15... b5 {[%clk 0:02:28.1]} 16. Nxd5 {[%clk 0:02:08.8]} 16...
exd5 {[%clk 0:01:37.6]} 17. e6 {[%clk 0:02:09.4]} 17... Qc6 {[%clk 0:01:36.9]}
18. exd7+ {[%clk 0:02:02.3]} 18... Kxd7 {[%clk 0:01:37.7]} 19. Qg4+ {[%clk
0:01:51.9]} 19... Kd8 {[%clk 0:01:29.7]} 20. Re2 {[%clk 0:01:31.4]} 20... Qd7
{[%clk 0:01:24.2]} 21. Qf3 {[%clk 0:01:24.8]} 21... Kc8 {[%clk 0:01:18.5]} 22.
a4 {[%clk 0:01:08.3]} 22... b4 {[%clk 0:01:16.6]} 23. Rd1 {[%clk 0:00:56.3]}
23... Rd8 {[%clk 0:01:11.9]} 24. Bc4 {[%clk 0:00:50.4]} 24... Be4 {[%clk
0:01:03.2]} 25. Rxe4 {[%clk 0:00:51]} 25... dxe4 {[%clk 0:01:03.2]} 26. Rxd7
{[%clk 0:00:46.2]} 26... exf3 {[%clk 0:01:04]} 27. Rc7+ {[%clk 0:00:46.4]} 27...
Kb8 {[%clk 0:01:00.1]} 28. Rxc5+ {[%clk 0:00:22.8]} 28... Ka7 {[%clk 0:00:55.8]}
29. Be3 {[%clk 0:00:23.4]} 29... Kb8 {[%clk 0:00:50.5]} 30. a5 {[%clk 0:00:23]}
30... fxg2 {[%clk 0:00:44.6]} 31. Bd5 {[%clk 0:00:23.1]} 31... Ra7 {[%clk
0:00:43.5]} 32. Bf4+ {[%clk 0:00:23.5]} 1